bitfinex-derivatives/quotes_BTCF0:USTF0_20241213
["timestamp","ask_amount","ask_price","bid_price","bid_amount"]
[1734084629046,0.66674458,100150.0,100140.0,0.18428069]
[1734084631446,0.87634576,100150.0,100140.0,0.18428069]
[1734084632338,0.87634576,100150.0,100140.0,0.005]
[1734084632541,0.75016946,100150.0,100140.0,0.005]
[1734084632751,0.87634576,100150.0,100140.0,0.005]
[1734084632951,0.81325761,100150.0,100140.0,0.005]
[1734084634041,1.17405761,100150.0,100140.0,0.005]
[1734084638153,1.23714576,100150.0,100140.0,0.005]
[1734084638549,1.11096946,100150.0,100140.0,0.005]
[1734084638856,1.17405761,100150.0,100140.0,0.005]
[1734084643352,1.11096946,100150.0,100140.0,0.005]
[1734084643559,1.17405761,100150.0,100140.0,0.005]
[1734084643865,1.17405761,100150.0,100140.0,0.18428069]
[1734084644057,0.96445643,100150.0,100140.0,0.18428069]
[1734084644357,0.96445643,100150.0,100140.0,0.24758069]
[1734084644358,1.14420422,100150.0,100140.0,0.24758069]
[1734084645466,0.96445643,100150.0,100140.0,0.24758069]
[1734084646156,1.17405761,100150.0,100140.0,0.24758069]
[1734084648259,1.14419806,100150.0,100140.0,0.24758069]
[1734084650051,1.20728621,100150.0,100140.0,0.24758069]
[1734084650355,1.14419806,100150.0,100140.0,0.18428069]
[1734084650557,1.20728621,100150.0,100140.0,0.18428069]
[1734084651965,1.23714576,100150.0,100140.0,0.18428069]
[1734084652757,1.17405761,100150.0,100140.0,0.18428069]
[1734084655765,1.23714576,100150.0,100140.0,0.18428069]
[1734084655960,1.11096946,100150.0,100140.0,0.18428069]
[1734084656265,1.17405761,100150.0,100140.0,0.18428069]
[1734084658569,1.23714576,100150.0,100140.0,0.18428069]
[1734084658866,1.02754458,100150.0,100140.0,0.18428069]
[1734084660056,1.23714576,100150.0,100140.0,0.18428069]
[1734084660262,1.02754458,100150.0,100140.0,0.18428069]
[1734084660857,1.20728282,100150.0,100140.0,0.18428069]
[1734084661069,1.02754458,100150.0,100140.0,0.18428069]
[1734084664465,0.96445643,100150.0,100140.0,0.18428069]
[1734084666570,1.17405761,100150.0,100140.0,0.18428069]
[1734084667376,1.23714576,100150.0,100140.0,0.18428069]
[1734084676171,1.21716321,100150.0,100140.0,0.18428069]
[1734084678577,1.15407506,100150.0,100140.0,0.18428069]
[1734084679477,1.21716321,100150.0,100140.0,0.18428069]
[1734084679880,1.23687787,100150.0,100140.0,0.18428069]
[1734084683478,1.11070157,100150.0,100140.0,0.18428069]
[1734084683676,1.23687787,100150.0,100140.0,0.18428069]
[1734084686377,1.02727669,100150.0,100140.0,0.18428069]
[1734084687678,0.66647669,100150.0,100140.0,0.18428069]
[1734084688486,0.60338854,100150.0,100140.0,0.18428069]
[1734084689193,0.81298972,100150.0,100140.0,0.18428069]
[1734084690694,0.74990157,100150.0,100140.0,0.18428069]
[1734084690894,0.65046192,100150.0,100140.0,0.59961335]
[1734084691091,0.54059819,100150.0,100140.0,0.48433266]
[1734084691290,0.69035847,100150.0,100140.0,0.78433266]
[1734084692084,0.74028047,100150.0,100140.0,0.78433266]
[1734084692284,0.14976028,100150.0,100140.0,1.74919937]
[1734084692497,0.20956404,100150.0,100140.0,1.86922117]
[1734084692985,0.20956404,100150.0,100140.0,2.2391331]
[1734084693394,0.08981065,100150.0,100140.0,1.86922117]
[1734084694398,0.08981065,100150.0,100140.0,1.51008219]
[1734084696188,0.08981065,100150.0,100140.0,1.89628219]
[1734084697198,0.38251888,100160.0,100140.0,1.89628219]
[1734084697393,0.33259888,100160.0,100150.0,0.38205547]
[1734084697601,0.43245408,100160.0,100150.0,0.38205547]
[1734084698392,0.43245408,100160.0,100150.0,0.56092307]
[1734084698600,0.43245408,100160.0,100150.0,0.49783492]
[1734084700397,0.31270069,100160.0,100150.0,0.49783492]
[1734084702507,0.31270069,100160.0,100150.0,0.2592896]
[1734084704616,0.40738884,100160.0,100150.0,0.2287896]
[1734084705106,0.34430069,100160.0,100150.0,0.2287896]
[1734084708009,0.37650069,100160.0,100150.0,0.2287896]
[1734084710314,0.40690069,100160.0,100150.0,0.2287896]
[1734084710609,0.40690069,100160.0,100150.0,0.1788676]
[1734084713305,0.40690069,100160.0,100150.0,0.41741292]
[1734084714604,0.31709004,100160.0,100140.0,1.05293214]
[1734084714804,0.31709004,100160.0,100150.0,0.23843566]
[1734084715011,0.40670402,100160.0,100150.0,0.4172624]
[1734084715214,0.52618933,100160.0,100150.0,0.4172624]
[1734084715605,0.95007748,100160.0,100150.0,0.17882674]
[1734084715803,0.8604635,100160.0,100140.0,1.37309454]
[1734084716006,0.8604635,100160.0,100140.0,1.01229454]
[1734084716007,0.20264488,100150.0,100140.0,1.01229454]
[1734084716205,0.32213019,100150.0,100140.0,1.01229454]
[1734084716711,0.42198539,100150.0,100140.0,1.01229454]
[1734084717209,0.42198539,100150.0,100140.0,0.62609454]
[1734084718417,0.42198539,100150.0,100140.0,0.62909454]
[1734084718914,0.42198539,100150.0,100140.0,0.63209454]
[1734084720308,0.26926251,100150.0,100140.0,1.42486312]
[1734084720610,0.3590243,100150.0,100140.0,1.18642746]
[1734084721203,0.2591691,100150.0,100140.0,1.6071691]
[1734084721408,0.2591691,100150.0,100140.0,1.63889338]
[1734084723207,0.2591691,100150.0,100140.0,1.99199338]
[1734084723413,0.2591691,100150.0,100140.0,1.99189342]
[1734084723614,0.2591691,100150.0,100140.0,1.21035178]
[1734084723809,0.2591691,100150.0,100140.0,1.56800527]
[1734084724009,0.2092471,100150.0,100140.0,1.99189342]
[1734084724226,0.2092471,100150.0,100140.0,2.42643044]
[1734084724426,0.08976179,100150.0,100140.0,2.42643044]
[1734084724615,0.08976179,100150.0,100140.0,2.12838587]
[1734084725117,0.08976179,100150.0,100140.0,2.00220957]
[1734084725326,0.08976179,100150.0,100140.0,2.12838587]
[1734084725831,0.08976179,100150.0,100140.0,2.42838587]
[1734084730417,0.08976179,100150.0,100140.0,2.42729065]
[1734084735918,0.08976179,100150.0,100140.0,2.05674457]
[1734084736426,0.08976179,100150.0,100140.0,1.99365642]
[1734084736618,0.08976179,100150.0,100140.0,1.75674457]
[1734084737419,0.08976179,100150.0,100140.0,2.12762627]
[1734084737725,0.08976179,100150.0,100140.0,1.75674457]
[1734084739026,0.08976179,100150.0,100140.0,1.92910014]
[1734084739227,0.12226179,100150.0,100140.0,1.26955642]
[1734084739421,0.2417471,100150.0,100140.0,1.92911586]
[1734084739619,0.12226179,100150.0,100140.0,1.63035642]
[1734084740325,0.12226179,100150.0,100140.0,2.00182034]
[1734084740628,0.12226179,100150.0,100140.0,2.06490849]
[1734084741222,0.12226179,100150.0,100140.0,2.06506977]
[1734084748238,0.08976179,100150.0,100140.0,2.12815792]
[1734084748428,0.2693471,100160.0,100150.0,0.049922]
[1734084748624,0.2693471,100160.0,100150.0,1.81168531]
[1734084748828,0.2693471,100160.0,100150.0,1.51298219]
[1734084753136,0.2693471,100160.0,100150.0,1.89918219]
[1734084754642,0.2693471,100160.0,100150.0,1.8963834]
[1734084754832,0.2693471,100160.0,100150.0,1.89638515]
[1734084755433,0.14986179,100160.0,100150.0,1.89638515]
[1734084756243,0.2693471,100160.0,100150.0,1.89638515]
[1734084756438,0.14986179,100160.0,100150.0,1.89638515]
[1734084756641,0.2693471,100160.0,100150.0,1.82635995]
[1734084756835,0.2693471,100160.0,100150.0,1.46464635]
[1734084757035,0.2693471,100160.0,100150.0,1.82636137]
[1734084757540,0.14986179,100160.0,100150.0,1.82636137]
[1734084757943,0.14986179,100160.0,100150.0,1.8363742]
[1734084759044,0.14986179,100160.0,100150.0,1.83650395]
[1734084759240,0.14986179,100160.0,100150.0,1.9066822]
[1734084760547,0.14986179,100160.0,100150.0,2.20527602]
[1734084763142,0.14986179,100160.0,100150.0,1.9066822]
[1734084768961,0.14986179,100160.0,100150.0,1.9057822]
[1734084772757,0.14986179,100160.0,100150.0,1.59709323]
[1734084772965,0.14986179,100160.0,100150.0,1.90710865]
[1734084775568,0.2693471,100160.0,100150.0,1.90710865]
[1734084778473,0.2693471,100160.0,100150.0,1.54866491]
[1734084780167,0.2693471,100160.0,100150.0,1.90794852]
[1734084782965,0.2092471,100160.0,100150.0,1.97104224]
[1734084783165,0.2092471,100160.0,100150.0,1.64205306]
[1734084783562,0.08976179,100160.0,100150.0,1.64205306]
[1734084783764,0.08976179,100160.0,100150.0,2.48774117]
[1734084784772,0.08976179,100160.0,100150.0,1.37977353]
[1734084785075,0.08976179,100160.0,100150.0,2.48495517]
[1734084785469,0.2393471,100170.0,100150.0,2.48495517]
[1734084785671,0.2393471,100170.0,100160.0,0.8959909]
[1734084785869,0.2393471,100170.0,100160.0,1.57344998]
[1734084786071,0.2393471,100170.0,100160.0,1.87269977]
[1734084786469,0.2393471,100170.0,100160.0,1.87269791]
[1734084787970,0.2393471,100170.0,100160.0,1.50430403]
[1734084788273,0.2393471,100170.0,100160.0,1.50530403]
[1734084788571,0.2393471,100170.0,100160.0,1.44221588]
[1734084788966,0.2393471,100170.0,100160.0,1.37912773]
[1734084789178,0.2393471,100170.0,100160.0,1.44221588]
[1734084789377,0.2393471,100170.0,100160.0,1.44233926]
[1734084791578,0.2393471,100170.0,100160.0,1.37925111]
[1734084791777,0.2393471,100170.0,100160.0,1.44233926]
[1734084794477,0.2393471,100170.0,100160.0,1.50542741]
[1734084798482,0.2393471,100170.0,100160.0,1.87436656]
[1734084800583,0.2393471,100170.0,100160.0,1.50542741]
[1734084800785,0.2393471,100170.0,100160.0,1.87435579]
[1734084803084,0.2393471,100170.0,100160.0,1.87471369]
[1734084803281,0.2393471,100170.0,100160.0,1.74853739]
[1734084803484,0.2393471,100170.0,100160.0,1.87471369]
[1734084805587,0.2393471,100170.0,100160.0,1.87481465]
[1734084805775,0.2393471,100170.0,100160.0,1.57546576]
[1734084807474,0.2393471,100170.0,100160.0,1.57619636]
[1734084812688,0.14958531,100170.0,100160.0,1.57619636]
[1734084813586,0.29922543,100170.0,100160.0,1.57619636]
[1734084815193,0.29922543,100170.0,100160.0,1.57635256]
[1734084816590,0.14958531,100170.0,100160.0,1.57635256]
[1734084818088,0.23944178,100170.0,100160.0,1.57635256]
[1734084818288,0.20933692,100170.0,100160.0,1.27930912]
[1734084818489,0.08985161,100170.0,100160.0,2.51033404]
[1734084818677,0.08985161,100170.0,100160.0,2.35326959]
[1734084818883,0.27243692,100180.0,100160.0,2.57363404]
[1734084819189,0.27243692,100180.0,100170.0,0.89601415]
[1734084819485,0.27243692,100180.0,100170.0,1.57434182]
[1734084819692,0.15295161,100180.0,100170.0,1.57434182]
[1734084820491,0.15295161,100180.0,100170.0,1.57534182]
[1734084820794,0.12175161,100180.0,100170.0,1.57534182]
[1734084820981,0.24123692,100190.0,100180.0,0.049907]
[1734084821181,0.24123692,100190.0,100180.0,1.14240165]
[1734084822086,0.24123692,100190.0,100180.0,1.14340165]
[1734084823292,0.24123692,100190.0,100180.0,1.14440165]
[1734084823494,0.24123692,100190.0,100180.0,1.3833928]
[1734084824289,0.24123692,100190.0,100180.0,1.32030465]
[1734084824491,0.23454497,100190.0,100180.0,0.89596001]
[1734084824694,0.45384562,100190.0,100180.0,0.47008658]
[1734084824900,0.45384562,100190.0,100180.0,0.42017958]
[1734084825087,0.45384562,100190.0,100180.0,0.22913609]
[1734084825088,0.87463092,100190.0,100180.0,0.22913609]
[1734084825291,2.37463092,100190.0,100180.0,0.22913609]
[1734084825702,2.25514561,100190.0,100180.0,0.22913609]
[1734084825897,0.69205746,100190.0,100180.0,0.22913609]
[1734084826098,0.81161001,100190.0,100180.0,0.22913609]
[1734084826401,0.87469816,100190.0,100180.0,0.29222424]
[1734084827107,0.75514561,100190.0,100180.0,0.22913609]
[1734084827303,0.75514561,100190.0,100180.0,0.29222424]
[1734084827503,0.75514561,100190.0,100180.0,0.22913609]
[1734084828201,0.75514561,100190.0,100180.0,0.29222424]
[1734084828589,0.69205746,100190.0,100180.0,0.29222424]
[1734084828996,0.87470105,100190.0,100180.0,0.29222424]
[1734084829794,0.75514561,100190.0,100180.0,0.29222424]
[1734084831504,0.75514561,100190.0,100180.0,0.22913609]
[1734084833193,0.93437358,100190.0,100180.0,0.22913609]
[1734084836101,0.95448668,100190.0,100180.0,0.22913609]
[1734084836499,0.93437358,100190.0,100180.0,0.22913609]
[1734084840007,0.87128543,100190.0,100180.0,0.22913609]
[1734084840210,0.93437358,100190.0,100180.0,0.22913609]
[1734084840698,0.93437358,100190.0,100180.0,0.17922909]
[1734084841100,0.95476625,100190.0,100180.0,0.17922909]
[1734084845698,0.87128543,100190.0,100180.0,0.29222424]
[1734084845903,0.37877009,100190.0,100180.0,0.35531239]
[1734084846103,0.37877009,100190.0,100180.0,0.29222424]
[1734084846510,0.31916748,100190.0,100180.0,0.29222424]
[1734084846700,0.31916748,100190.0,100180.0,0.71611239]
[1734084846905,0.31916748,100190.0,100180.0,0.5368833]
[1734084847301,0.31916748,100190.0,100180.0,0.77279299]
[1734084847506,0.31916748,100190.0,100180.0,1.07767082]
[1734084849305,0.31916748,100190.0,100180.0,1.17165897]
[1734084849510,0.31916748,100190.0,100180.0,1.10857082]
[1734084850011,0.31916748,100190.0,100180.0,0.32321867]
[1734084850200,0.31916748,100190.0,100180.0,1.10840733]
[1734084854707,0.31916748,100190.0,100180.0,1.11857884]
[1734084855311,0.31916748,100190.0,100180.0,1.14947884]
[1734084860417,0.31916748,100190.0,100180.0,1.14917792]
[1734084864316,0.38225563,100190.0,100180.0,1.13900641]
[1734084865124,0.38225563,100190.0,100180.0,1.13908634]
[1734084866626,0.38225563,100190.0,100180.0,0.83459299]
[1734084866826,0.38225563,100190.0,100180.0,0.17479515]
[1734084867028,0.26263027,100190.0,100180.0,0.35415797]
[1734084868125,0.26263027,100190.0,100180.0,0.32325797]
[1734084869625,0.26263027,100190.0,100180.0,0.44289299]
[1734084869828,0.26263027,100190.0,100180.0,0.32328429]
[1734084870030,0.44185824,100190.0,100180.0,0.32328429]
[1734084870220,0.26263027,100190.0,100180.0,0.32328429]
[1734084870719,0.44185824,100190.0,100180.0,0.32328429]
[1734084871224,0.26263027,100190.0,100180.0,0.32328429]
[1734084871424,0.26263027,100190.0,100180.0,0.14389515]
[1734084871729,0.26263027,100190.0,100180.0,0.29240111]
[1734084872229,0.26263027,100190.0,100180.0,0.41199299]
[1734084872425,0.44185824,100190.0,100180.0,0.29241887]
[1734084873230,0.44185824,100190.0,100180.0,0.11299515]
[1734084873617,0.44185824,100190.0,100180.0,0.41199299]
[1734084873820,0.90247358,100190.0,100180.0,0.29899784]
[1734084874020,0.90247358,100190.0,100180.0,0.17944858]
[1734084874021,0.93427358,100190.0,100180.0,0.17944858]
[1734084874233,0.78463346,100190.0,100180.0,0.17944858]
[1734084877525,0.42383346,100190.0,100180.0,0.17944858]
[1734084877724,0.57345489,100190.0,100180.0,0.24253673]
[1734084877926,0.78463346,100190.0,100180.0,0.24253673]
[1734084878121,0.93425681,100190.0,100180.0,0.17944858]
[1734084878317,0.78463346,100190.0,100180.0,0.17944858]
[1734084878827,0.93424969,100190.0,100180.0,0.17944858]
[1734084885621,0.93424969,100190.0,100180.0,0.24253673]
[1734084886025,0.93424969,100190.0,100180.0,0.17944858]
[1734084889031,0.93424969,100190.0,100180.0,0.41851351]
[1734084894133,0.78463346,100190.0,100180.0,0.41851351]
[1734084903145,0.84772161,100190.0,100180.0,0.41851351]
[1734084903844,0.81450479,100190.0,100180.0,0.17944858]
[1734084904043,0.75141664,100190.0,100180.0,0.17944858]
[1734084904344,0.75141664,100190.0,100180.0,0.41851351]
[1734084904345,0.78510417,100190.0,100180.0,0.41851351]
[1734084904543,0.72201602,100190.0,100180.0,0.48160166]
[1734084904739,0.78510417,100190.0,100180.0,0.48160166]
[1734084905544,0.42430417,100190.0,100180.0,0.48160166]
[1734084905930,0.78510417,100190.0,100180.0,0.48160166]
[1734084906135,0.60540549,100190.0,100180.0,0.48160166]
[1734084906345,0.60540549,100190.0,100180.0,0.41851351]
[1734084906642,0.7850949,100190.0,100180.0,0.41851351]
[1734084907639,0.60540549,100190.0,100180.0,0.41851351]
[1734084909439,0.78509223,100190.0,100180.0,0.41851351]
[1734084909648,0.60540549,100190.0,100180.0,0.41851351]
[1734084910347,0.78508972,100190.0,100180.0,0.41851351]
[1734084910738,0.78508887,100190.0,100180.0,0.41851351]
[1734084911140,0.60540549,100190.0,100180.0,0.41851351]
[1734084911340,0.60540549,100190.0,100180.0,0.17944858]
[1734084911543,0.78508225,100190.0,100180.0,0.41851351]
[1734084912142,0.60540549,100190.0,100180.0,0.41851351]
[1734084912345,0.60540549,100190.0,100180.0,0.17944858]
[1734084912545,0.66849364,100190.0,100180.0,0.17944858]
[1734084912941,0.60540549,100190.0,100180.0,0.17944858]
[1734084913446,0.66849364,100190.0,100180.0,0.17944858]
[1734084913647,0.87759294,100190.0,100180.0,0.17944858]
[1734084915144,0.66849364,100190.0,100180.0,0.17944858]
[1734084916347,0.049907,100180.0,100170.0,0.41851351]
[1734084916546,0.53828069,100180.0,100170.0,0.41851351]
[1734084916853,0.89908069,100180.0,100170.0,0.41851351]
[1734084917057,0.99889603,100180.0,100170.0,0.41851351]
[1734084917351,0.93580788,100180.0,100170.0,0.41851351]
[1734084917847,0.93680788,100180.0,100170.0,0.41951351]
[1734084918240,0.93780788,100180.0,100170.0,0.42051351]
[1734084923046,1.00089603,100180.0,100170.0,0.42051351]
[1734084924442,1.01078514,100180.0,100170.0,0.42051351]
[1734084928649,0.86110451,100180.0,100170.0,0.42051351]
[1734084928849,0.95649266,100180.0,100170.0,0.18144858]
[1734084929244,1.10250381,100180.0,100170.0,0.002]
[1734084929445,0.71378775,100180.0,100170.0,0.002]
[1734084930155,0.9859752,100180.0,100170.0,0.002]
[1734084930555,0.71378775,100180.0,100170.0,0.002]
[1734084930756,0.7768759,100180.0,100170.0,0.002]
[1734084930948,0.9859752,100180.0,100170.0,0.002]
[1734084931350,0.71378775,100180.0,100170.0,0.002]
[1734084931549,0.92288705,100180.0,100170.0,0.002]
[1734084931747,0.71378775,100180.0,100170.0,0.002]
[1734084933448,0.89324344,100180.0,100170.0,0.002]
[1734084940755,0.95633159,100180.0,100170.0,0.002]
[1734084940957,0.049917,100160.0,100150.0,0.51581231]
[1734084941255,1.11031433,100160.0,100150.0,0.17944858]
[1734084941556,0.049922,100150.0,100140.0,0.41815746]
[1734084941755,0.77881011,100150.0,100140.0,0.41815746]
[1734084941955,0.83863793,100150.0,100140.0,0.17909253]
[1734084942162,0.93846323,100150.0,100140.0,0.17909253]
[1734084943350,0.93846323,100150.0,100130.0,0.45015746]
[1734084943351,0.049927,100140.0,100130.0,0.45015746]
[1734084943557,0.26575145,100140.0,100130.0,0.45015746]
[1734084944960,0.26675145,100140.0,100130.0,0.21109253]
[1734084945158,0.2036633,100140.0,100130.0,0.45015746]
[1734084945357,0.2036633,100140.0,100130.0,0.27418068]
[1734084945863,0.2096633,100140.0,100130.0,0.27418068]
[1734084946572,0.2166633,100140.0,100130.0,0.27618068]
[1734084948068,0.22667626,100140.0,100130.0,0.27618068]
[1734084949251,0.22667626,100140.0,100130.0,0.21309253]
[1734084950360,0.22667626,100140.0,100130.0,0.034]
[1734084951466,0.13702811,100140.0,100130.0,0.034]
[1734084952373,0.13702811,100140.0,100130.0,0.002]
[1734084952671,0.16842811,100140.0,100130.0,0.002]
[1734084953265,0.25807626,100140.0,100130.0,0.002]
[1734084955366,0.42102959,100140.0,100130.0,0.002]
[1734084955560,0.29485329,100140.0,100130.0,0.18109253]
[1734084955760,0.35794144,100140.0,100130.0,0.65491268]
[1734084955961,0.32654144,100140.0,100130.0,0.29411268]
[1734084956169,0.32654144,100140.0,100130.0,0.06508815]
[1734084956473,0.32654144,100140.0,100130.0,0.24418068]
[1734084956658,0.32654144,100140.0,100130.0,0.06508815]
[1734084957465,0.32654144,100140.0,100130.0,0.002]
[1734084958359,0.32654144,100140.0,100130.0,0.18109253]
[1734084960266,0.44607226,100140.0,100130.0,0.18109253]
[1734084962473,0.78031226,100140.0,100130.0,0.18109253]
[1734084962770,0.86992899,100140.0,100130.0,0.002]
[1734084962967,0.96124514,100140.0,100130.0,0.002]
[1734084965169,0.84171432,100140.0,100130.0,0.002]
[1734084965377,0.96120861,100140.0,100130.0,0.002]
[1734084965576,0.84171432,100140.0,100130.0,0.002]
[1734084968479,1.02115378,100140.0,100130.0,0.002]
[1734084970074,0.89497748,100140.0,100130.0,0.06508815]
[1734084970265,0.77862617,100140.0,100130.0,0.18109253]
[1734084970571,0.77862617,100140.0,100130.0,0.42015746]
[1734084970775,0.84171432,100140.0,100130.0,0.42015746]
[1734084976476,1.02115378,100140.0,100130.0,0.42015746]
[1734084976872,0.84171432,100140.0,100130.0,0.42015746]
[1734084977276,1.02115378,100140.0,100130.0,0.42015746]
[1734084979580,0.84171432,100140.0,100130.0,0.42015746]
[1734084980182,0.32333802,100140.0,100130.0,0.84404561]
[1734084980368,0.21345988,100140.0,100130.0,0.71488508]
[1734084980569,0.27345744,100140.0,100130.0,1.02304375]
[1734084980774,0.27345744,100140.0,100130.0,1.47410251]
[1734084981269,0.27345744,100140.0,100130.0,1.11497666]
[1734084983078,0.27345744,100140.0,100130.0,1.05188851]
[1734084983573,0.27345744,100140.0,100130.0,1.11497666]
[1734084984379,0.22353044,100140.0,100130.0,1.11497666]
[1734084984785,0.10379562,100140.0,100130.0,1.84035012]
[1734084984976,0.10379562,100140.0,100130.0,1.54135228]
[1734084985177,0.014,100140.0,100130.0,1.84986605]
[1734084985778,0.10379562,100140.0,100130.0,1.48361844]
[1734084985978,0.10379562,100140.0,100130.0,1.12449259]
[1734084989881,0.014,100140.0,100130.0,1.48361844]
[1734084990281,0.014,100140.0,100130.0,1.48273266]
[1734084990885,0.014,100140.0,100130.0,1.18669496]
[1734084991187,0.013,100140.0,100130.0,1.9127005]
[1734084991388,0.013,100140.0,100130.0,1.55357465]
[1734084991594,0.13971562,100160.0,100150.0,0.049922]
[1734084991889,0.04992,100160.0,100150.0,1.31807902]
[1734084992081,0.04992,100160.0,100150.0,1.35087902]
[1734084992294,0.04992,100160.0,100150.0,0.92419643]
[1734084992583,0.35603061,100170.0,100160.0,0.049917]
[1734084992789,0.35603061,100170.0,100160.0,0.11300515]
[1734084992994,0.36078769,100170.0,100160.0,0.1760933]
[1734084993293,0.26094246,100170.0,100160.0,0.14580515]
[1734084993490,0.26094246,100170.0,100160.0,0.35702655]
[1734084994086,0.10029364,100170.0,100160.0,0.71882655]
[1734084994292,0.10929364,100170.0,100160.0,0.71982655]
[1734084994693,0.01949802,100170.0,100160.0,0.71982655]
[1734084998093,0.01949802,100170.0,100160.0,0.54090515]
[1734084999201,0.01949802,100170.0,100160.0,0.55102221]
[1734084999582,0.01949802,100170.0,100160.0,0.61411036]
[1734084999795,0.01949802,100170.0,100160.0,0.55102221]
[1734085001403,0.01949802,100170.0,100160.0,0.54090515]
[1734085005394,0.01949802,100170.0,100160.0,0.71982655]
[1734085006494,0.13249817,100170.0,100160.0,0.6239384]
[1734085006806,0.65472357,100170.0,100160.0,0.002]
[1734085006990,0.62483542,100170.0,100160.0,0.002]
[1734085007296,0.83436586,100170.0,100160.0,0.002]
[1734085008190,0.83436586,100170.0,100160.0,0.051917]
[1734085009789,0.82536586,100170.0,100160.0,0.050917]
[1734085009993,0.83436586,100170.0,100160.0,0.051917]
[1734085011090,0.74457024,100170.0,100160.0,0.051917]
[1734085011496,0.74457024,100170.0,100160.0,0.2308384]
[1734085013396,0.62483542,100170.0,100160.0,0.2308384]
[1734085013697,0.26403542,100170.0,100160.0,0.5916384]
[1734085013889,0.26403542,100170.0,100160.0,0.65138188]
[1734085013890,0.38353984,100170.0,100160.0,0.65138188]
[1734085014290,0.47318315,100170.0,100160.0,0.83041202]
[1734085015394,0.38353984,100170.0,100160.0,0.83041202]
[1734085018297,0.53307272,100170.0,100160.0,0.83041202]
[1734085019603,0.53307272,100170.0,100160.0,0.65138188]
[1734085021294,0.28723353,100170.0,100160.0,1.37944759]
[1734085021497,0.28723353,100170.0,100160.0,1.31635944]
[1734085021703,0.28723353,100170.0,100160.0,1.07769456]
[1734085021704,0.35032168,100170.0,100160.0,1.07769456]
[1734085022004,0.35032168,100170.0,100160.0,1.43569188]
[1734085022005,0.29055985,100170.0,100160.0,1.43569188]
[1734085023005,0.2274717,100170.0,100160.0,1.43569188]
[1734085023906,0.2274717,100170.0,100160.0,1.43383607]
[1734085025208,0.2274717,100170.0,100160.0,1.46543607]
[1734085026205,0.2274717,100170.0,100160.0,1.52852422]
[1734085026410,0.2274717,100170.0,100160.0,1.46543607]
[1734085026996,0.2274717,100170.0,100160.0,1.10743875]
[1734085027304,0.2274717,100170.0,100160.0,1.1705269]
[1734085027606,0.2274717,100170.0,100160.0,1.11760771]
[1734085027803,0.2274717,100170.0,100160.0,1.18069586]
[1734085028503,0.2274717,100170.0,100160.0,1.11689818]
[1734085028700,0.2274717,100170.0,100160.0,1.17998633]
[1734085029297,0.2274717,100170.0,100160.0,1.53798365]
[1734085031303,0.10777105,100170.0,100160.0,1.53798365]
[1734085033402,0.10777105,100170.0,100160.0,1.92418365]
[1734085035215,0.10777105,100170.0,100160.0,1.56618633]
[1734085037307,0.10777105,100170.0,100160.0,1.8610955]
[1734085037509,0.10777105,100170.0,100160.0,1.86093355]
[1734085038904,0.10777105,100170.0,100160.0,1.50293623]
[1734085039307,0.2274717,100170.0,100160.0,1.50293623]
[1734085039512,0.10777105,100170.0,100160.0,1.86093355]
[1734085040807,0.2274717,100170.0,100160.0,1.86093355]
[1734085041013,0.2274717,100170.0,100160.0,1.50293623]
[1734085041406,0.2274717,100170.0,100160.0,1.86093355]
[1734085042114,0.29055985,100170.0,100160.0,1.86093355]
[1734085042327,0.29055985,100170.0,100160.0,1.82933355]
[1734085042617,0.29055985,100170.0,100160.0,1.47133623]
[1734085043320,0.29055985,100170.0,100160.0,1.82933355]
[1734085043519,0.29055985,100170.0,100160.0,1.47133623]
[1734085043709,0.29055985,100170.0,100160.0,1.82933355]
[1734085044417,0.2007888,100170.0,100160.0,1.47133623]
[1734085044912,0.2007888,100170.0,100160.0,1.08513623]
[1734085045816,0.2507008,100170.0,100160.0,1.01187912]
[1734085046004,0.82412183,100170.0,100160.0,0.8900997]
[1734085046206,1.04739591,100170.0,100160.0,0.47022878]
[1734085046609,0.98430776,100170.0,100160.0,0.42031178]
[1734085046811,0.83477488,100170.0,100160.0,0.1812912]
[1734085047012,0.83477488,100170.0,100160.0,0.42031178]
[1734085047212,0.98439982,100170.0,100160.0,0.1812912]
[1734085047407,0.83477488,100170.0,100160.0,0.1812912]
[1734085047620,0.98440042,100170.0,100160.0,0.1812912]
[1734085053014,0.80496096,100170.0,100160.0,0.1812912]
[1734085053719,0.92457214,100170.0,100160.0,0.1812912]
[1734085053922,0.80496096,100170.0,100160.0,0.1812912]
[1734085055314,0.98440042,100170.0,100160.0,0.1812912]
[1734085055514,1.04748857,100170.0,100160.0,0.1812912]
[1734085055823,0.98440042,100170.0,100160.0,0.1812912]
[1734085056321,0.98440042,100170.0,100160.0,0.002]
[1734085060312,0.80496096,100170.0,100160.0,0.002]
[1734085064025,0.80496096,100170.0,100160.0,0.1812912]
[1734085069335,0.98440042,100170.0,100160.0,0.1812912]
[1734085073335,0.83477488,100170.0,100160.0,0.42031178]
[1734085077534,0.47397488,100170.0,100160.0,0.42031178]
[1734085077732,0.83477488,100170.0,100160.0,0.42031178]
[1734085078535,0.89786303,100170.0,100160.0,0.42031178]
[1734085078838,0.83477488,100170.0,100160.0,0.42031178]
[1734085081240,0.85444057,100170.0,100160.0,0.42031178]
[1734085081432,0.49364057,100170.0,100160.0,0.42031178]
[1734085081633,0.85444057,100170.0,100160.0,0.42031178]
[1734085085245,0.67500111,100170.0,100160.0,0.42031178]
[1734085085449,0.85475462,100170.0,100160.0,0.42031178]
[1734085088446,0.85475462,100170.0,100160.0,0.42039217]
[1734085088841,0.85475462,100170.0,100160.0,0.24102058]
[1734085091055,0.49395462,100170.0,100160.0,0.24102058]
[1734085093444,0.85475462,100170.0,100160.0,0.24102058]
[1734085094044,0.49395462,100170.0,100160.0,0.24102058]
[1734085094446,0.46397622,100170.0,100160.0,0.24102058]
[1734085094841,0.82477622,100170.0,100160.0,0.24102058]
[1734085095043,0.49395462,100170.0,100160.0,0.24102058]
[1734085095454,0.85475462,100170.0,100160.0,0.24102058]
[1734085096450,0.85475462,100170.0,100160.0,0.42035444]
[1734085098451,0.49395462,100170.0,100160.0,0.42035444]
[1734085099162,0.34750078,100170.0,100160.0,0.42035444]
[1734085099350,0.16776398,100170.0,100160.0,1.14237101]
[1734085099551,0.28753242,100170.0,100160.0,1.50036833]
[1734085099753,0.22759209,100170.0,100160.0,1.86263252]
[1734085100154,0.27749909,100170.0,100160.0,1.86263252]
[1734085100461,0.27749909,100170.0,100160.0,1.43728018]
[1734085101349,0.27749909,100170.0,100160.0,1.14237101]
[1734085101659,0.27749909,100170.0,100160.0,1.07928286]
[1734085103154,0.27749909,100170.0,100160.0,1.08917848]
[1734085105558,0.10782365,100170.0,100160.0,1.53846663]
[1734085105861,0.10782365,100170.0,100160.0,2.25868636]
[1734085105862,0.018,100170.0,100160.0,2.25868636]
[1734085107959,0.016,100170.0,100160.0,2.25868636]
[1734085108656,0.014,100170.0,100160.0,2.25768636]
[1734085109960,0.014,100170.0,100160.0,1.89713285]
[1734085110957,0.014,100170.0,100160.0,1.59713285]
[1734085111468,0.014,100170.0,100160.0,1.89484222]
[1734085114155,0.014,100170.0,100160.0,2.25564222]